{"text_format":"1","workbook":"xlsx","n_sheets":1,"sheets":["Sheet1"],"not_rendered":{"charts":0,"images":2,"macros":1,"external_links":0,"defined_names":1,"comments":0,"pivot_tables":0},"unopened":[],"bounds":{"document_bytes":16777216,"sheet_cells":100000,"rows_first":2000,"rows_last":500,"rows_between":2000,"halvings":0,"cell_chars":16384,"cell_head_chars":4096},"cells_cut":0,"cells_raw":0,"read":"whole","date_system":"1900"}

{"sheet":"Sheet1","index":0,"n_rows":61,"n_cols":7,"rows_kept":61,"cut":false,"hidden":false,"merged":[[38,0,38,1],[25,0,25,1],[23,0,23,1],[21,0,21,1],[8,2,8,6],[10,2,10,6],[12,2,12,6],[60,0,60,4],[17,0,17,6],[27,0,27,6],[35,0,35,6],[44,0,44,6],[52,4,52,5],[54,1,54,3],[22,2,22,6],[20,2,20,6],[24,2,24,6],[53,1,53,6],[31,0,33,0],[28,0,29,0],[28,1,29,1],[48,0,48,1],[40,0,40,6],[0,0,0,6],[2,1,2,3],[2,5,2,6],[3,1,3,2],[1,0,1,6],[3,5,3,6],[46,0,46,1],[47,0,47,1],[49,0,49,1],[30,0,30,1],[5,0,5,6],[6,0,6,1],[9,0,9,1],[11,0,11,1],[13,0,13,1],[14,0,14,1],[42,0,42,1],[19,0,19,1],[18,0,18,1],[7,0,7,1],[15,0,15,1],[37,0,37,1]]}
["Ryegate Results Form"]
["If a class was offered and did not fill - use DNF for the Class Number"]
["Show Name:",null,null,null,"Show Dates:"]
["USEF Comp #:",null,null,null,"Jumper Rating:"]
[]
["NORTH AMERICAN LEAGUE QUALIFYING EVENTS - 3 ENTRIES TO FILL"]
["$7/RIDER",null,"Prize $ Offered","# Entered","# Finished","Class(es) #","Subtotal"]
["ADULT HUNTER",null,null,null,null,null,{"$f":"D8*7","v":0}]
[null,null,"If combined use one line to put total # of Entries and \"COMB\"  for Class # on other line"]
["CHILD HUNTER",null,null,null,null,null,{"$f":"D10*7","v":0}]
[null,null,"If combined use one line to put total # of Entries and \"COMB\"  for Class # on other line"]
["1.10-1.15M AMATUER JUMPER",null,null,null,null,null,{"$f":"D12*7","v":0}]
[null,null,"If combined use one line to put total # of Entries and \"COMB\"  for Class # on other line"]
["1.10-1.15M JUNIOR JUMPER",null,null,null,null,null,{"$f":"D14*7","v":0}]
["1.20-1.25M LOW JR/AM JUMPER",null,null,null,null,null,{"$f":"D15*7","v":0}]
["1.30-1.35M MED JR/AM JUMPER",null,null,null,null,null,{"$f":"D16*7","v":0}]
[null,null,null,null,null,null,{"$f":"SUM(G8:G16)","v":0}]
["WIHS QUALIFYING EVENTS - 3 ENTRIES TO FILL "]
["$7/RIDER",null,"Prize $ Offered","# Entered","# Finished","Class(es) #","Subtotal"]
["ADULT HUNTER",null,null,null,null,null,{"$f":"D20*7","v":0}]
[null,null,"If combined use one line to put total # of Entries and \"COMB\"  for Class # on other line"]
["CHILD HUNTER",null,null,null,null,null,{"$f":"D22*7","v":0}]
[null,null,"If combined use one line to put total # of Entries and \"COMB\"  for Class # on other line"]
["1.10-1.15M AMATUER JUMPER",null,null,null,null,null,{"$f":"D24*7","v":0}]
[null,null,"If combined use one line to put total # of Entries and \"COMB\"  for Class # on other line"]
["1.10-1.15M JUNIOR JUMPER",null,null,null,null,null,{"$f":"D26*7","v":0}]
[null,null,null,null,null,null,{"$f":"SUM(G20:G26)","v":0}]
["WIHS EQUITATION QUALIFYING EVENTS - 3 ENTRIES TO FILL"]
["PONY\n","If one phase of two phase event does not fill, enter info on one phase line",null,"# Entered","# Finished","Class(es) #","Subtotal"]
[null,null,"$10/rider",null,null,null,{"$f":"D30*10","v":0}]
["3'6\" EQ - 1 Phase",null,"$10/rider",null,null,null,{"$f":"D31*10","v":0}]
["3'6\" Eq - 2 Phases","Hunter Phase","$7/rider",null,null,null,{"$f":"D32*7","v":0}]
[null,"Jumper Phase","$7/rider",null,null,null,{"$f":"D33*7","v":0}]
[null,"Overall Class"]
[null,null,null,null,null,null,{"$f":"SUM(G30:G33)","v":0}]
[" NAM, NCM EQUITATION QUALIFYING EVENTS  - 1 ENTRY TO FILL"]
[null,null,null,"# Entered","# Finished","Class(es) #","Subtotal"]
["ARIAT/NAM",null,"$7/rider",null,null,null,{"$f":"D38*7","v":0}]
["THIS/NCM",null,"$7/rider",null,null,null,{"$f":"D39*7","v":0}]
[null,null,null,null,null,null,{"$f":"SUM(G38:G39)","v":0}]
["WEC Premier Cup -  ENTIRES TO FILL"]
[null,null,null,"# Entered","# Finished","Class(es) #","Subtotal"]
["WEC Premier Cup",null,"$7/rider",null,null,null,{"$f":"D43*7","v":0}]
[null,null,null,null,null,null,{"$f":"SUM(G43)","v":0}]
["SHOWJUMPING HALL OF FAME - 3 ENTIRES TO FILL"]
[null,null,null,"# Entered","# Finished","Class(es) #","Subtotal"]
["AMATEUR 1.30 - 1.35M",null,"$20/rider",null,null,null,{"$f":"D47*20","v":0}]
["JUNIOR 1.30 - 1.35M",null,"$20/rider",null,null,null,{"$f":"D48*20","v":0}]
["AMATEUR 1.40 - 1.45M",null,"$20/rider",null,null,null,{"$f":"D49*20","v":0}]
["JUNIOR 1.40 - 1.45M",null,"$20/rider",null,null,null,{"$f":"D50*20","v":0}]
[null,null,null,null,null,null,{"$f":"SUM(G47:G50)","v":0}]
[]
["For questions:",null,null,null,"Total Due To Ryegate",null,{"$f":"G51+G40+G35+G27+G17+G44","v":0}]
["Contact Name"]
["Email"]
[]
["Payment will be:",null,"Check:",null,"Mail To:","Ryegate Show Services, Inc."]
[null,null,"Use CC on file ending in:",null,null,"1298 Royal Rd"]
[null,null,"CC form will be faxed",null,null,"Annville, PA 17003"]
[null,null,null,null,null,"717-867-2174 fax"]
["EMAIL FORM AND USEF DAT FILE TO RESULTS@RYEGATE.COM",null,null,null,null,"results@ryegate.com"]